fUSD/lending_fUSD_20240526
["ID","MTS","AMOUNT","RATE_DAILY","PERIOD"]
[327954434,1716703847572,-412.60685689,0.0002739,2]
[327954435,1716703847581,-300.0,0.00027397,2]
[327954436,1716703847590,-184.73,0.00027397,2]
[327954437,1716703847599,-200.2498712,0.000274,2]
[327954438,1716703847611,-151.14619494,0.00027405,2]
[327954439,1716703847621,-150.07486739,0.00027471,2]
[327954440,1716703847630,-160.29252322,0.00027522,2]
[327954441,1716703847642,-3609.77972175,0.00027525,2]
[327954442,1716703847652,-300.0,0.00027534,2]
[327954443,1716703847661,-151.14619494,0.00027637,2]
[327954444,1716703847671,-237.62289906,0.0002766,2]
[327954445,1716703847681,-302.32799881,0.00027671,2]
[327954446,1716703847690,-150.07486739,0.00027673,2]
[327954447,1716703847700,-237.62289906,0.00027682,2]
[327954448,1716703847710,-151.24501,0.00027702,2]
[327954449,1716703847719,-672.248242,0.00027702,2]
[327954450,1716703847728,-150.0,0.00027739,2]
[327954451,1716703847738,-154.99526871,0.00027769,2]
[327954452,1716703847747,-150.36554134,0.00027932,2]
[327954453,1716703847757,-151.31157432,0.00027978,2]
[327954454,1716703847767,-7859.86454775,0.00028,2]
[327954455,1716703847776,-155.0,0.00028,2]
[327954456,1716703847785,-1019.0,0.00028,5]
[327954457,1716703847795,-600.0,0.00028,2]
[327954458,1716703847805,-263.41244035,0.00028,2]
[327954459,1716703847814,-154.99526871,0.00028003,2]
[327954460,1716703847824,-150.00504777,0.00028017,2]
[327954461,1716703847834,-172.582552,0.00028044,2]
[327954462,1716703847843,-151.24501,0.00028044,2]
[327954463,1716703847853,-672.248242,0.00028044,2]
[327954464,1716703847862,-150.07486739,0.00028053,2]
[327954465,1716703847872,-800.0,0.00028067,2]
[327954466,1716703847881,-500.0,0.00028067,2]
[327954467,1716703847892,-213.72145154,0.00028067,2]
[327954468,1716703847902,-640.3379954,0.0002807,2]
[327954469,1716703847912,-151.14619494,0.00028093,2]
[327954470,1716703847922,-150.0,0.00028105,2]
[327954471,1716703847931,-154.08593147,0.00028128,2]
[327954472,1716703847941,-500.0,0.00028142,2]
[327954473,1716703847950,-500.0,0.00028142,2]
[327954474,1716703847960,-500.0,0.00028142,2]
[327954475,1716703847969,-500.0,0.00028142,2]
[327954476,1716703847979,-500.0,0.00028142,2]
[327954477,1716703847989,-500.0,0.00028142,2]
[327954478,1716703847999,-151.14619494,0.00028162,2]
[327954479,1716703848008,-3590.25993429,0.00028183,2]
[327954480,1716703848017,-150.0,0.00028198,2]
[327954481,1716703848027,-150.0,0.00028198,2]
[327954482,1716703848036,-300.0,0.000282,2]
[327954483,1716703848046,-158.13283358,0.00028256,2]
[327954484,1716703848055,-150.00504777,0.00028259,2]
[327954485,1716703848181,-155.58128738,0.00028311,2]
[327954486,1716703848236,-155.58128738,0.00028322,2]
[327954487,1716703848246,-500.0,0.00028341,2]
[327954488,1716703848255,-640.3379954,0.00028355,2]
[327954489,1716703848264,-151.24501,0.00028386,2]
[327954490,1716703848274,-672.248242,0.00028386,2]
[327954491,1716703848283,-150.0,0.0002839,2]
[327954492,1716703848292,-150.36554134,0.0002839,2]
[327954493,1716703848301,-150.07486739,0.00028416,2]
[327954494,1716703848310,-155.80308987,0.00028439,2]
[327954495,1716703848320,-155.58128738,0.00028445,2]
[327954496,1716703848329,-154.99526876,0.00028456,2]
[327954497,1716703848339,-159.03411987,0.00028495,2]
[327954498,1716703848348,-237.62289906,0.00028503,2]
[327954499,1716703848358,-151.14619494,0.00028533,2]
[327954500,1716703848367,-150.07486739,0.00028546,2]
[327954501,1716703848376,-300.0,0.00028571,2]
[327954502,1716703848386,-237.62289906,0.00028615,2]
[327954503,1716703848396,-165.43186829,0.0002864,2]
[327954504,1716703848405,-150.0,0.0002866,17]
[327954505,1716703848414,-151.14619494,0.00028671,2]
[327954506,1716703848424,-150.0,0.00028682,2]
[327954507,1716703848433,-172.582552,0.00028728,2]
[327954508,1716703848443,-168.174609,0.00028728,2]
[327954509,1716703848453,-151.24501,0.00028728,2]
[327954510,1716703848463,-672.248242,0.00028728,2]
[327954511,1716703848473,-286.16,0.00028746,2]
[327954512,1716703848482,-150.0,0.00028746,2]
[327954513,1716703848491,-237.62289906,0.00028749,2]
[327954514,1716703848501,-151.31157432,0.00028759,2]
[327954515,1716703848510,-150.00504777,0.0002879,2]
[327954516,1716703848520,-1204.19,0.00028822,2]
[327954517,1716703848533,-640.3379954,0.00028866,2]
[327954518,1716703848543,-169.00998555,0.00028874,2]
[327954519,1716703848552,-150.07486739,0.00028879,2]
[327954520,1716703848562,-150.0,0.00028886,2]
[327954521,1716703848572,-3049.25130494,0.000289,2]
[327954522,1716703848582,-151.14619494,0.00028923,2]
[327954523,1716703848592,-300.0,0.00028942,2]
[327954524,1716703848602,-154.12972109,0.00028993,2]
[327954525,1716703848612,-1483.6790455,0.00029,2]
[327954526,1716703848622,-5000.0,0.00029,2]
[327954527,1716703848631,-500000.0,0.00029,2]
[327954528,1716703848640,-1000.0,0.00029,6]
[327954529,1716703848650,-2423.99592176,0.00029,2]
[327954530,1716703848659,-151.0,0.00029,7]
[327954531,1716703848669,-151.0,0.00029,7]
[327954532,1716703848678,-151.0,0.00029,7]
[327954533,1716703848688,-1250.0,0.00029,2]
[327954534,1716703848697,-181.412208,0.00029,7]
[327954535,1716703848707,-151.0,0.00029,7]
[327954536,1716703848716,-153.940107,0.00029,7]
[327954537,1716703848726,-169.226819,0.00029,7]
[327954538,1716703848736,-151.0,0.00029,7]
[327954539,1716703848746,-151.0,0.00029,7]
[327954540,1716703848756,-151.0,0.00029,7]
[327954541,1716703848766,-151.0,0.00029,7]
[327954542,1716703848776,-151.0,0.00029,7]
[327954543,1716703848786,-151.0,0.00029,7]
[327954544,1716703848797,-151.0,0.00029,7]
[327954545,1716703848806,-153.858443,0.00029,7]
[327954546,1716703848817,-151.0,0.00029,7]
[327954547,1716703848828,-151.0,0.00029,7]
[327954548,1716703848837,-153.531594,0.00029,7]
[327954549,1716703848846,-165.704284,0.00029,7]
[327954550,1716703848856,-152.12118,0.00029,7]
[327954551,1716703848866,-152.836982,0.00029,7]
[327954552,1716703848875,-159.223412,0.00029,7]
[327954553,1716703848885,-161.513505,0.00029,7]
[327954554,1716703848895,-151.0,0.00029,7]
[327954555,1716703848904,-151.0,0.00029,7]
[327954556,1716703848913,-151.0,0.00029,7]
[327954557,1716703848923,-151.0,0.00029,7]
[327954558,1716703848933,-151.0,0.00029,7]
[327954559,1716703848942,-151.0,0.00029,7]
[327954560,1716703848952,-151.0,0.00029,7]
[327954561,1716703848962,-254.520185,0.00029,7]
[327954562,1716703848972,-153.738915,0.00029,7]
[327954563,1716703848982,-151.0,0.00029,7]
[327954564,1716703848991,-151.0,0.00029,7]
[327954565,1716703849001,-264.483688,0.00029,7]
[327954566,1716703849010,-151.0,0.00029,7]
[327954567,1716703849021,-151.0,0.00029,7]
[327954568,1716703849030,-165.015525,0.00029,7]
[327954569,1716703849040,-151.0,0.00029,7]
[327954570,1716703849050,-151.0,0.00029,7]
[327954571,1716703849059,-285.763657,0.00029,7]
[327954572,1716703849068,-151.0,0.00029,7]
[327954573,1716703849078,-285.763657,0.00029,7]
[327954574,1716703849088,-151.0,0.00029,7]
[327954575,1716703849098,-162.791862,0.00029,7]
[327954576,1716703849107,-198.776416,0.00029,7]
[327954577,1716703849116,-302.516036,0.00029,7]
[327954578,1716703849126,-5000.0,0.00029013,2]
[327954579,1716703849136,-2100.0,0.00029025,2]
[327954580,1716703849146,-151.31157432,0.00029026,2]
[327954581,1716703849155,-5000.0,0.00029042,2]
[327954582,1716703849165,-166.66666667,0.00029046,2]
[327954583,1716703849174,-2693.5336732,0.00029118,2]
[327954584,1716703849183,-160.05268881,0.00029123,2]
[327954585,1716703849194,-598.34230166,0.00029124,2]
[327954586,1716703849203,-1079.67562379,0.00029124,2]
[327954587,1716703849213,-152.86586541,0.00029155,2]
[327954588,1716703849224,-800.0,0.00029163,2]
[327954589,1716703849233,-500.0,0.00029163,2]
[327954590,1716703849244,-9537.82416197,0.00029176,2]
[327954591,1716703849688,-462.17583803,0.00029176,2]
[327954592,1716703849699,-150.0,0.00029224,2]
[327954593,1716703849709,-151.14619494,0.00029243,2]
[327954594,1716703849719,-237.62289906,0.00029254,2]
[327954595,1716703849729,-150.07486739,0.00029258,2]
[327954596,1716703849739,-5000.0,0.00029267,2]
[327954597,1716703849749,-5000.0,0.00029269,2]
[327954598,1716703849758,-300.0,0.00029313,2]
[327954599,1716703849767,-1010.63623835,0.00029321,2]
[327954600,1716703849779,-567.27994098,0.00029321,2]
[327954601,1716703849790,-6729.4,0.00029321,2]
[327954602,1716703849802,-674.44,0.00029321,2]
[327954603,1716703849813,-1018.24382067,0.00029321,2]
[327954604,1716703849823,-5000.0,0.00029345,2]
[327954605,1716703849833,-152.07,0.00029349,2]
[327954606,1716703849843,-150.0,0.00029383,2]
[327954607,1716703849852,-154.08593147,0.00029395,2]
[327954608,1716703849861,-613.0,0.00029398,2]
[327954609,1716703849871,-374.174,0.00029398,2]
[327954610,1716703849880,-530.032,0.00029398,2]
[327954611,1716703849890,-2369.365,0.00029398,2]
[327954612,1716703849899,-320.541,0.00029398,2]
[327954613,1716703849910,-1650.0,0.00029398,2]
[327954614,1716703849919,-215.0,0.00029398,2]
[327954615,1716703849929,-363.54268538,0.00029437,2]
[327954616,1716703849940,-640.3379954,0.00029441,2]
[327954617,1716703849951,-237.62289906,0.00029495,2]
[327954618,1716703849960,-3098.84608029,0.00029497,2]
[327954619,1716703849973,-1274.16553897,0.00029497,2]
[327954620,1716703850958,-751.45358305,0.00012999,2]
[327954621,1716703850968,-210.49319076,0.00012999,2]
[327954622,1716703850980,-364.38999625,0.00017259,2]
[327954623,1716703850989,-10000.0,0.00021616,2]
[327954624,1716703850999,-151.0,0.00029,7]
[327954625,1716703851008,-302.516036,0.00029,7]
[327954626,1716703851018,-626.98838074,0.00029497,2]
[327954627,1716703851027,-226.01793324,0.000295,3]
[327954628,1716703851037,-41188.4368973,0.000295,2]
[327954629,1716703851047,-1205.02,0.000295,2]
[327954630,1716703851056,-151.0,0.00029508,2]
[327954631,1716703851066,-154.159753,0.00029536,2]
[327954632,1716703851076,-150.0,0.00029553,2]
[327954633,1716703851085,-155.11596389,0.00029575,2]
[327954634,1716703851095,-150.07486739,0.0002958,2]
[327954635,1716703851105,-5000.0,0.00029589,2]
[327954636,1716703851114,-150.0,0.00029597,2]
[327954637,1716703851123,-373.39156659,0.00029604,2]
[327954638,1716703851133,-150.36554134,0.00029623,2]
[327954639,1716703851143,-237.62289906,0.00029624,2]
[327954640,1716703851152,-237.62289906,0.00029677,2]
[327954641,1716703851162,-5000.0,0.00029684,2]
[327954642,1716703851172,-300.0,0.00029684,2]
[327954643,1716703851181,-151.14619494,0.00029695,2]
[327954644,1716703851191,-1205.02,0.000297,2]
[327954645,1716703851201,-5000.0,0.00029716,2]
[327954646,1716703851210,-151.14619494,0.00029762,2]
[327954647,1716703851220,-500.0,0.00029788,2]
[327954648,1716703851230,-500.0,0.00029788,2]
[327954649,1716703851239,-500.0,0.00029788,2]
[327954650,1716703851249,-500.0,0.00029788,2]
[327954651,1716703851259,-500.0,0.00029788,2]
[327954652,1716703851268,-500.0,0.00029788,2]
[327954653,1716703851279,-2000.0,0.000298,2]
[327954654,1716703851289,-1010.8,0.000298,2]
[327954655,1716703851298,-943.81,0.000298,2]
[327954656,1716703851308,-312.24,0.000298,2]
[327954657,1716703851318,-4527.63103595,0.00029819,2]
[327954658,1716703851363,-472.36896405,0.00029819,2]
[327954659,1716703851372,-150.0,0.00029833,2]
[327954660,1716703851382,-156.15478031,0.00029845,2]
[327954661,1716703851392,-150.0,0.00029863,2]
[327954662,1716703851402,-160.05268881,0.00029867,2]
[327954663,1716703851412,-2666.42356683,0.0002988,7]
[327954664,1716703851424,-9252.83665297,0.0002988,7]
[327954665,1716703851434,-150.0,0.00029898,2]
[327954666,1716703851444,-5000.0,0.00029905,2]
[327954667,1716703851454,-150.07486739,0.00029914,2]
[327954668,1716703851464,-152.0,0.00029924,3]
[327954669,1716703851474,-640.3379954,0.00029927,2]
[327954670,1716703851483,-1397.63421658,0.00029937,2]
[327954671,1716703851492,-151.14619513,0.00029938,2]
[327954672,1716703851502,-25000.0,0.00029972,2]
[327954673,1716703851512,-1020.3706398,0.00029979,2]
[327954674,1716703851522,-8280.7785405,0.00029979,2]
[327954675,1716703851536,-455.5875467,0.00029979,2]
[327954676,1716703851545,-150.0,0.00029993,2]
[327954677,1716703851554,-150.0,0.00029994,2]
[327954678,1716703851564,-631.01086653,0.00029997,2]
[327954679,1716703852197,-1968.371,0.00029997,2]
[327954680,1716703852209,-1211.45319428,0.00029997,2]
[327954681,1716703852278,-150.0,0.00029739,2]
[327954682,1716703852288,-150.0,0.00029901,2]
[327954683,1716703852298,-193.706,0.00029997,2]
[327955819,1716705032299,-155.0,0.00011091,2]
[327955820,1716705032309,-252.68598435,0.00011091,2]
[327955821,1716705032318,-234.48123736,0.00011092,2]
[327955822,1716705032328,-325.18870715,0.00011092,2]
[327955823,1716705032337,-727.31825765,0.00011093,2]
[327955824,1716705032349,-24.1353254,0.00011093,2]
[327955825,1716705032359,-1299.11942176,0.00011093,2]
[327955826,1716705032369,-210.49319076,0.00011093,2]
[327955827,1716705032379,-35402.54232857,0.00011095,2]
[327955828,1716705032389,-339.82287847,0.00011102,2]
[327955829,1716705032399,-389.7174445,0.00011213,2]
[327955830,1716705032408,-249.7707939,0.00011899,2]
[327955834,1716705033176,-90.05208457,0.00011899,2]
[327955835,1716705033186,-162.14362647,0.00012578,2]
[327955836,1716705033197,-339.82287847,0.00012696,2]
[327955837,1716705033206,-2857.07248,0.00012786,2]
[327955838,1716705033215,-348.90099629,0.00012796,2]
[327955839,1716705033229,-15359.96620371,0.00012796,2]
[327955840,1716705033239,-9036.4445,0.000128,2]
[327955841,1716705033248,-279.9268,0.000128,2]
[327955842,1716705033258,-2350.404,0.000128,2]
[327955843,1716705033268,-48277.22021589,0.000129,2]
[327955844,1716705033286,-484.55762474,0.000129,2]
[327955845,1716705033297,-3189.83507936,0.000129,2]
[327955846,1716705033308,-6181.20006022,0.000129,2]
[327955847,1716705033319,-493.36047548,0.000129,2]
[327955848,1716705033331,-474.37904849,0.000129,2]
[327955849,1716705033342,-1026.39824093,0.000129,2]
[327955850,1716705033354,-1723.49402903,0.000129,2]
[327955851,1716705033389,-315.96781428,0.000129,2]
[327955852,1716705033400,-5000.0,0.000129,2]
[327955853,1716705033411,-1935.23226309,0.000129,2]
[327955854,1716705033422,-463.44284492,0.000129,2]
[327955856,1716705038269,-541.55577053,0.0001109,2]
[327955857,1716705038280,-3616.34630357,0.000129,2]
[327955858,1716705038295,-23199.0985,0.000129,2]
[327955859,1716705038306,-17967.055,0.000129,2]
[327955860,1716705038316,-152.05,0.00013973,2]
[327955861,1716705038326,-500.0,0.000151,2]
[327955862,1716705038335,-349.0,0.00015278,2]
[327955863,1716705038345,-2751.0,0.00015354,2]
[327955864,1716705038356,-250.0,0.0001537,2]
[327955865,1716705038366,-2500.0,0.00015649,2]
[327955866,1716705038375,-23900.0,0.00015749,2]
[327955867,1716705038384,-1000.0,0.00017867,2]
[327955868,1716705038394,-162.14362646,0.000179,2]
[327955869,1716705038404,-804.42407721,0.00018,2]
[327955870,1716705038414,-349.0,0.00018018,2]
[327955871,1716705038423,-172.6,0.00018185,2]
[327955872,1716705038436,-172.6,0.00018501,2]
[327955873,1716705038446,-200.0,0.00018516,2]
[327955874,1716705038456,-500.0,0.00018516,2]
[327955875,1716705038466,-172.6,0.00018817,2]
[327955876,1716705038475,-172.6,0.00019133,2]
[327955877,1716705038485,-155.0,0.0002,2]
[327955878,1716705038495,-6244.01880649,0.0002,2]
[327955879,1716705038505,-349.0,0.00020757,2]
[327955880,1716705038515,-5515.18694721,0.00021,2]
[327955881,1716705038525,-1050.0,0.00021,2]
[327955882,1716705038535,-152.05,0.00021209,2]
[327955883,1716705038545,-1000.0,0.0002131,2]
[327955884,1716705038554,-796.3897,0.00021514,2]
[327955885,1716705038564,-1263.85446581,0.00021614,2]
[327955886,1716705038573,-155.0,0.00021614,2]
[327955887,1716705038583,-3983.116034,0.00021614,2]
[327955888,1716705038593,-1307.52400341,0.00021615,2]
[327955890,1716705038602,-155.0,0.00021615,2]
[327955891,1716705038612,-184.73,0.00021918,2]
[327955894,1716705038621,-250.0,0.00021918,2]
[327955895,1716705038635,-2000.0,0.00021918,2]
[327955898,1716705038644,-240.9,0.00021918,2]
[327955899,1716705038654,-9161.51745053,0.00022,2]
[327955901,1716705038663,-150.36554137,0.00022186,2]
[327955902,1716705038674,-668.67967532,0.00022209,2]
[327955903,1716705038684,-178.2171743,0.00022617,2]
[327955904,1716705038694,-1100.0,0.00023,2]
[327955906,1716705038703,-151.31157437,0.00023131,2]
[327955908,1716705038712,-166.66666668,0.00023148,2]
[327955909,1716705038722,-231.44785067,0.00023164,2]
[327955910,1716705038732,-152.86586541,0.00023237,2]
[327955911,1716705038742,-1043.837,0.00023601,2]
[327955912,1716705038751,-160.08449885,0.00023641,2]
[327955913,1716705038761,-160.08449885,0.00023793,2]
[327955914,1716705038771,-1000.0,0.00023973,2]
[327955915,1716705038782,-180.0,0.0002423,2]
[327955916,1716705038792,-721.95594435,0.00024889,2]
[327955917,1716705038802,-2513.18195407,0.00024898,2]
[327955918,1716705038811,-2513.181954,0.00024898,2]
[327955919,1716705038820,-2513.181954,0.00024898,2]
[327955920,1716705038830,-2513.181954,0.00024898,2]
[327955921,1716705038840,-2513.181954,0.00024898,2]
[327955922,1716705038849,-2513.181954,0.00024898,2]
[327955923,1716705038858,-1150.0,0.00025,2]
[327955924,1716705038868,-1000.0,0.00025205,2]
[327955925,1716705038878,-150.00504778,0.00025538,2]
[327955926,1716705038888,-178.2171743,0.00026239,2]
[327955927,1716705038899,-160.08449885,0.00026334,2]
[327955928,1716705038908,-721.95594435,0.00026533,2]
[327955929,1716705038917,-539.76863518,0.00026535,2]
[327955930,1716705038942,-442.951285,0.00026535,2]
[327955931,1716705038954,-1530.46203382,0.00026535,2]
[327955932,1716705038963,-1000.0,0.00026637,2]
[327955933,1716705038971,-10000.0,0.00026658,2]
[327955934,1716705038981,-150.0,0.00026885,2]
[327955935,1716705038990,-1200.0,0.00027,2]
[327955936,1716705039059,-150.0,0.000271,2]
[327955937,1716705039069,-155.62475234,0.00027105,2]
[327955938,1716705039079,-178.2171743,0.00027227,2]
[327955939,1716705039089,-1973.58972381,0.00027297,2]
[327955940,1716705039108,-5526.41027619,0.00027297,2]
[327955941,1716705039118,-323.73107518,0.00027297,2]
[327955942,1716705039129,-268.0,0.000273,14]
[327955943,1716705039139,-155.0,0.00027397,4]
[327955944,1716705039149,-500.0,0.00027397,4]
[327955945,1716705039158,-500.0,0.00027397,4]
[327955946,1716705039167,-500.0,0.00027397,4]
[327955947,1716705039176,-500.0,0.00027397,4]
[327955948,1716705039186,-500.0,0.00027397,4]
[327955949,1716705039195,-290.69000594,0.00027397,4]
[327955950,1716705039204,-500.0,0.00027397,4]
[327955951,1716705039214,-500.0,0.00027397,4]
[327955952,1716705039223,-500.0,0.00027397,4]
[327955953,1716705039233,-537.90605106,0.00027397,4]
[327955954,1716705039242,-500.0,0.00027397,4]
[327955955,1716705039252,-155.0,0.00027397,4]
[327955956,1716705039261,-500.0,0.00027397,4]
[327955957,1716705039270,-366.00364863,0.00027397,4]
[327955958,1716705039280,-576.68999183,0.00027397,4]
[327955959,1716705039290,-603.87837878,0.00027397,4]
[327955960,1716705039299,-510.30119168,0.00027397,4]
[327955961,1716705039310,-500.0,0.00027397,4]
[327955962,1716705039319,-510.1,0.00027397,4]
[327955963,1716705039328,-770.67,0.00027397,4]
[327955964,1716705039338,-500.0,0.00027397,4]
[327955965,1716705039347,-500.0,0.00027397,4]
[327955966,1716705039357,-500.0,0.00027397,2]
[327955967,1716705039366,-500.0,0.00027397,4]
[327955968,1716705039375,-786.1,0.00027397,4]
[327955969,1716705039384,-258.72722511,0.00027397,4]
[327955970,1716705039393,-500.0,0.00027397,4]
[327955971,1716705039403,-500.0,0.00027397,4]
[327955972,1716705039412,-500.0,0.00027397,4]
[327955973,1716705039422,-500.0,0.00027397,4]
[327955974,1716705039431,-521.94907978,0.00027397,4]
[327955975,1716705039440,-527.36257868,0.00027397,4]
[327955976,1716705039449,-500.0,0.00027397,4]
[327955977,1716705039459,-500.0,0.00027397,4]
[327955978,1716705039469,-500.0,0.00027397,4]
[327955979,1716705039479,-500.0,0.00027397,4]
[327955980,1716705039488,-500.0,0.00027397,4]
[327955981,1716705039497,-370.27272899,0.00027397,4]
[327955982,1716705039507,-500.0,0.00027397,4]
[327955983,1716705039516,-500.0,0.00027397,4]
[327955984,1716705039526,-500.0,0.00027397,4]
[327955985,1716705039536,-543.06,0.00027397,4]
[327955986,1716705039546,-500.0,0.00027397,4]
[327955987,1716705039556,-500.0,0.00027397,4]
[327955988,1716705039565,-508.49669724,0.00027397,4]
[327955989,1716705039575,-500.0,0.00027397,4]
[327955990,1716705039584,-500.0,0.00027397,4]
[327955991,1716705039594,-500.0,0.00027397,4]
[327955992,1716705039604,-500.0,0.00027397,4]
[327955993,1716705039614,-500.0,0.00027397,4]
[327955994,1716705039624,-500.0,0.00027397,4]
[327955995,1716705039635,-500.0,0.00027397,4]
[327955996,1716705039645,-287.97560505,0.00027397,4]
[327955997,1716705039655,-500.0,0.00027397,4]
[327955998,1716705039665,-500.0,0.00027397,4]
[327955999,1716705039676,-500.0,0.00027397,4]
[327956000,1716705039685,-518.43,0.00027397,4]
[327956001,1716705039696,-714.85,0.00027397,4]
[327956002,1716705039705,-501.3623528,0.00027397,4]
[327956003,1716705039716,-500.0,0.00027397,4]
[327956004,1716705039726,-500.0,0.00027397,4]
[327956005,1716705039736,-500.0,0.00027397,4]
[327956006,1716705039747,-500.0,0.00027397,4]
[327956007,1716705039757,-2343.79,0.00027397,4]
[327956008,1716705039767,-500.0,0.00027397,4]
[327956009,1716705039777,-500.0,0.00027397,4]
[327956010,1716705039789,-500.0,0.00027397,4]
[327956011,1716705039800,-500.0,0.00027397,2]
[327956012,1716705039809,-500.0,0.00027397,4]
[327956013,1716705039819,-500.0,0.00027397,4]
[327956014,1716705039830,-500.0,0.00027397,4]
[327956015,1716705039840,-199.77964,0.00027397,4]
[327956016,1716705039850,-500.0,0.00027397,4]
[327956017,1716705039860,-500.0,0.00027397,4]
[327956018,1716705039870,-791.37,0.00027397,4]
[327956019,1716705039880,-500.0,0.00027397,4]
[327956020,1716705039891,-500.0,0.00027397,4]
[327956021,1716705039901,-518.19788024,0.00027397,4]
[327956022,1716705039911,-456.54378881,0.00027397,2]
[327956023,1716705039921,-953.82,0.00027397,4]
[327956024,1716705039931,-500.0,0.00027397,4]
[327956025,1716705039942,-500.0,0.00027397,4]
[327956026,1716705039952,-1502.31,0.00027397,2]
[327956027,1716705039963,-500.0,0.00027397,4]
[327956028,1716705039973,-651.84,0.00027397,4]
[327956029,1716705039983,-500.0,0.00027397,4]
[327956030,1716705039994,-500.0,0.00027397,4]
[327956031,1716705040004,-500.0,0.00027397,4]
[327956032,1716705040014,-579.61,0.00027397,4]
[327956033,1716705040024,-1625.26,0.00027397,4]
[327956034,1716705040035,-1448.67,0.00027397,4]
[327956035,1716705040047,-500.0,0.00027397,4]
[327956036,1716705040058,-1114.67,0.00027397,4]
[327956037,1716705040067,-500.0,0.00027397,4]
[327956038,1716705040077,-791.39,0.00027397,4]
[327956039,1716705040088,-559.95,0.00027397,2]
[327956040,1716705040098,-500.0,0.00027397,4]
[327956041,1716705040109,-500.0,0.00027397,4]
[327956042,1716705040119,-500.0,0.00027397,4]
[327956043,1716705040130,-500.0,0.00027397,2]
[327956044,1716705040140,-942.55,0.00027397,4]
[327956045,1716705040151,-500.0,0.00027397,4]
[327956046,1716705040161,-500.0,0.00027397,4]
[327956047,1716705040172,-500.0,0.00027397,4]
[327956048,1716705040182,-1291.28,0.00027397,4]
[327956049,1716705040192,-500.0,0.00027397,4]
[327956050,1716705040202,-500.0,0.00027397,4]
[327956051,1716705040212,-511.20716972,0.00027397,4]
[327956052,1716705040223,-200.7785382,0.00027397,2]
[327956053,1716705040234,-1604.28,0.00027397,4]
[327956054,1716705040244,-158.4332457,0.00027397,2]
[327956055,1716705040253,-17.30285039,0.00027397,4]
[327956056,1716705040270,-437.70943335,0.00027397,4]
[327956057,1716705040301,-44.98771626,0.00027397,4]
[327956058,1716705040311,-1016.08,0.00027397,2]
[327956059,1716705040321,-969.76419266,0.00027397,4]
[327956060,1716705041112,-342.32580734,0.00027397,4]
[327956061,1716705041123,-164.57436708,0.00027397,4]
[327956062,1716705041136,-379.36563292,0.00027397,4]
[327956063,1716705041145,-155.8281192,0.00027397,2]
[327956064,1716705041153,-1225.64,0.00027397,4]
[327956065,1716705041162,-108.64774791,0.00027397,4]
[327956066,1716705041175,-1549.72225209,0.00027397,4]
[327956067,1716705041184,-500.0,0.00027397,4]
[327956068,1716705041194,-509.31432,0.00027397,4]
[327956069,1716705041203,-500.0,0.00027397,4]
[327956070,1716705041212,-199.77964,0.00027397,2]
[327956071,1716705041221,-500.0,0.00027397,4]
[327956072,1716705041230,-500.0,0.00027397,4]
[327956073,1716705041240,-771.33454298,0.00027397,4]
[327956074,1716705041252,-275.950685,0.00027397,4]
[327956075,1716705041271,-633.73477202,0.00027397,4]
[327956076,1716705041281,-317.2817648,0.00027397,2]
[327956077,1716705041291,-141.93617653,0.00027397,4]
[327956078,1716705041907,-358.06382347,0.00027397,4]
[327956079,1716705041917,-500.0,0.00027397,4]
[327956080,1716705041926,-679.04,0.00027397,4]